[Event "Titled Tuesday Blitz March 22 Late 2022"]
[White "Papp, Levente"]
[Black "Cappai, Davide"]
[WhiteFideId "751243"]
[BlackFideId "813338"]
[WhiteElo "2308"]
[BlackElo "2295"]
[Result "0-1"]
[Round "08"]
[TimeControl "180+1"]
[Date "2022.03.22"]
[WhiteClock "0:00:05"]
[BlackClock "0:00:57"]

1. c4 {[%clk 0:03:00]}  g6 {[%clk 0:02:57]} 2. g3 {[%clk 0:03:00]}  Bg7 {[%clk 0:02:57]} 3. Bg2 {[%clk 0:03:01]}  c5 {[%clk 0:02:58]} 4. Nc3 {[%clk 0:03:00]}  Nc6 {[%clk 0:02:58]} 5. e3 {[%clk 0:03:00]}  d6 {[%clk 0:02:55]} 6. Nge2 {[%clk 0:02:59]}  Nf6 {[%clk 0:02:56]} 7. O-O {[%clk 0:02:59]}  O-O {[%clk 0:02:56]} 8. d4 {[%clk 0:03:00]}  Bd7 {[%clk 0:02:49]} 9. b3 {[%clk 0:02:53]}  Rb8 {[%clk 0:02:48]} 10. Bb2 {[%clk 0:02:50]}  a6 {[%clk 0:02:48]} 11. Rc1 {[%clk 0:02:07]}  cxd4 {[%clk 0:02:48]} 12. exd4 {[%clk 0:02:01]}  Qa5 {[%clk 0:02:46]} 13. a3 {[%clk 0:01:58]}  Qh5 {[%clk 0:02:46]} 14. Nf4 {[%clk 0:01:54]}  Qxd1 {[%clk 0:02:45]} 15. Rfxd1 {[%clk 0:01:55]}  Bg4 {[%clk 0:02:37]} 16. Rd2 {[%clk 0:01:43]}  Na5 {[%clk 0:02:37]} 17. Re1 {[%clk 0:01:36]}  Nxb3 {[%clk 0:02:36]} 18. Rd3 {[%clk 0:01:34]}  Bf5 {[%clk 0:02:34]} 19. Rde3 {[%clk 0:01:34]}  e6 {[%clk 0:02:30]} 20. Ne4 {[%clk 0:01:30]}  Nxe4 {[%clk 0:02:27]} 21. Rxb3 {[%clk 0:01:29]}  Nd2 {[%clk 0:02:24]} 22. Rb4 {[%clk 0:01:11]}  b5 {[%clk 0:02:22]} 23. cxb5 {[%clk 0:00:59]}  Rxb5 {[%clk 0:02:22]} 24. Bc6 {[%clk 0:00:48]}  Rxb4 {[%clk 0:02:14]} 25. axb4 {[%clk 0:00:49]}  Nc4 {[%clk 0:02:14]} 26. Bc3 {[%clk 0:00:49]}  Rb8 {[%clk 0:01:50]} 27. Ba4 {[%clk 0:00:24]}  d5 {[%clk 0:01:44]} 28. f3 {[%clk 0:00:21]}  h5 {[%clk 0:01:36]} 29. h3 {[%clk 0:00:20]}  Bh6 {[%clk 0:01:36]} 30. Kf2 {[%clk 0:00:17]}  Bxf4 {[%clk 0:01:35]} 31. gxf4 {[%clk 0:00:18]}  Bxh3 {[%clk 0:01:34]} 32. Ra1 {[%clk 0:00:17]}  Rb6 {[%clk 0:01:34]} 33. Bd7 {[%clk 0:00:17]}  Nd6 {[%clk 0:01:30]} 34. Ra5 {[%clk 0:00:13]}  Bf5 {[%clk 0:01:29]} 35. Rc5 {[%clk 0:00:13]}  Bd3 {[%clk 0:01:29]} 36. Rc7 {[%clk 0:00:13]}  Bb5 {[%clk 0:01:26]} 37. Bc8 {[%clk 0:00:09]}  Nxc8 {[%clk 0:01:21]} 38. Rxc8+ {[%clk 0:00:10]}  Kg7 {[%clk 0:01:22]} 39. Rc7 {[%clk 0:00:09]}  Rc6 {[%clk 0:01:21]} 40. Rxc6 {[%clk 0:00:09]}  Bxc6 {[%clk 0:01:21]} 41. Kg3 {[%clk 0:00:10]}  Bb5 {[%clk 0:01:21]} 42. Be1 {[%clk 0:00:09]}  Be2 {[%clk 0:01:20]} 43. Kf2 {[%clk 0:00:09]}  Bd1 {[%clk 0:01:20]} 44. Ke3 {[%clk 0:00:09]}  Kf8 {[%clk 0:01:17]} 45. Bh4 {[%clk 0:00:09]}  Ke8 {[%clk 0:01:17]} 46. f5 {[%clk 0:00:06]}  gxf5 {[%clk 0:01:13]} 47. f4 {[%clk 0:00:06]}  Kd7 {[%clk 0:01:11]} 48. Kd2 {[%clk 0:00:05]}  Bf3 {[%clk 0:01:10]} 49. Bf6 {[%clk 0:00:06]}  Ke8 {[%clk 0:01:08]} 50. Bh4 {[%clk 0:00:06]}  Kf8 {[%clk 0:01:08]} 51. Bf6 {[%clk 0:00:07]}  Kg8 {[%clk 0:01:08]} 52. Ke3 {[%clk 0:00:07]}  Bd1 {[%clk 0:01:08]} 53. Kd2 {[%clk 0:00:06]}  Ba4 {[%clk 0:01:07]} 54. Ke3 {[%clk 0:00:06]}  Kh7 {[%clk 0:01:07]} 55. Bh4 {[%clk 0:00:06]}  Kg6 {[%clk 0:01:07]} 56. Kd2 {[%clk 0:00:06]}  Bb5 {[%clk 0:01:07]} 57. Ke3 {[%clk 0:00:06]}  f6 {[%clk 0:01:07]} 58. Kd2 {[%clk 0:00:07]}  Kf7 {[%clk 0:01:07]} 59. Ke3 {[%clk 0:00:07]}  Ke7 {[%clk 0:01:08]} 60. Kf3 {[%clk 0:00:07]}  Bc4 {[%clk 0:01:06]} 61. Ke3 {[%clk 0:00:07]}  Kf7 {[%clk 0:00:57]} 62. Kf3 {[%clk 0:00:08]}  Bd3 {[%clk 0:00:58]} 63. Ke3 {[%clk 0:00:08]}  Be4 {[%clk 0:00:58]} 64. Kd2 {[%clk 0:00:09]}  Ke7 {[%clk 0:00:59]} 65. Ke3 {[%clk 0:00:09]}  Kd6 {[%clk 0:00:55]} 66. Bxf6 {[%clk 0:00:08]}  Kc6 {[%clk 0:00:56]} 67. Kd2 {[%clk 0:00:08]}  Kb5 {[%clk 0:00:56]} 68. Kc3 {[%clk 0:00:09]}  Ka4 {[%clk 0:00:57]} 69. Bh4 {[%clk 0:00:08]}  Ka3 {[%clk 0:00:57]} 70. Bg5 {[%clk 0:00:09]}  Ka2 {[%clk 0:00:58]} 71. Bh4 {[%clk 0:00:09]}  Kb1 {[%clk 0:00:58]} 72. Kb3 {[%clk 0:00:09]}  Kc1 {[%clk 0:00:57]} 73. Ka4 {[%clk 0:00:09]}  Kd2 {[%clk 0:00:57]} 74. Ka5 {[%clk 0:00:09]}  Bd3 {[%clk 0:00:57]} 75. Kb6 {[%clk 0:00:09]}  Ke3 {[%clk 0:00:57]} 76. Kc5 {[%clk 0:00:09]}  Kxf4 {[%clk 0:00:57]} 77. Kd6 {[%clk 0:00:10]}  Ke4 {[%clk 0:00:57]} 78. Kxe6 {[%clk 0:00:09]}  f4 {[%clk 0:00:57]} 79. Bf2 {[%clk 0:00:08]}  Kf3 {[%clk 0:00:57]} 80. Be1 {[%clk 0:00:06]}  Be4 {[%clk 0:00:57]} 81. Kd6 {[%clk 0:00:05]}  Ke2 {[%clk 0:00:57]} 82. Bh4 {[%clk 0:00:05]}  f3 {[%clk 0:00:57]} 0-1


[Site "https://www.chess.com"]

[Event "Titled Tuesday Blitz March 22 Late 2022"]
[White "Papp, Petra"]
[Black "Burke, Paul"]
[WhiteFideId "739049"]
[BlackFideId "2605767"]
[WhiteElo "2259"]
[BlackElo "1932"]
[Result "1-0"]
[Round "08"]
[TimeControl "180+1"]
[Date "2022.03.22"]
[WhiteClock "0:01:43"]
[BlackClock "0:01:35"]

1. d4 {[%clk 0:03:00]}  Nf6 {[%clk 0:02:59]} 2. Bf4 {[%clk 0:02:55]}  d6 {[%clk 0:02:58]} 3. e3 {[%clk 0:02:55]}  g6 {[%clk 0:02:58]} 4. c3 {[%clk 0:02:52]}  Bg7 {[%clk 0:02:58]} 5. h3 {[%clk 0:02:52]}  h6 {[%clk 0:02:58]} 6. Nf3 {[%clk 0:02:51]}  Nbd7 {[%clk 0:02:57]} 7. Nbd2 {[%clk 0:02:48]}  O-O {[%clk 0:02:57]} 8. Bc4 {[%clk 0:02:47]}  Kh7 {[%clk 0:02:55]} 9. h4 {[%clk 0:02:43]}  Nb6 {[%clk 0:02:36]} 10. Bd3 {[%clk 0:02:35]}  Bg4 {[%clk 0:02:35]} 11. Qc2 {[%clk 0:02:33]}  c5 {[%clk 0:02:07]} 12. Ng5+ {[%clk 0:02:21]}  Kg8 {[%clk 0:02:04]} 13. f3 {[%clk 0:02:19]}  hxg5 {[%clk 0:02:02]} 14. hxg5 {[%clk 0:02:18]}  Be6 {[%clk 0:01:47]} 15. gxf6 {[%clk 0:02:15]}  Bxf6 {[%clk 0:01:47]} 16. Bxg6 {[%clk 0:02:12]}  fxg6 {[%clk 0:01:45]} 17. Qxg6+ {[%clk 0:02:11]}  Bg7 {[%clk 0:01:45]} 18. Qxe6+ {[%clk 0:02:04]}  Rf7 {[%clk 0:01:45]} 19. O-O-O {[%clk 0:01:52]}  cxd4 {[%clk 0:01:44]} 20. exd4 {[%clk 0:01:52]}  Rc8 {[%clk 0:01:44]} 21. Kb1 {[%clk 0:01:51]}  Qc7 {[%clk 0:01:43]} 22. Bh6 {[%clk 0:01:46]}  Kf8 {[%clk 0:01:35]} 23. Bxg7+ {[%clk 0:01:44]}  Rxg7 {[%clk 0:01:35]} 24. Rh8+ {[%clk 0:01:43]} 1-0


[Site "https://www.chess.com"]

[Event "Titled Tuesday Blitz March 22 Late 2022"]
[White "Piesik, Piotr"]
[Black "Bernal Moro, Luis Javier"]
[WhiteFideId "1136194"]
[BlackFideId "2200236"]
[WhiteElo "2190"]
[BlackElo "2373"]
[Result "1-0"]
[Round "08"]
[TimeControl "180+1"]
[Date "2022.03.22"]
[WhiteClock "0:00:40"]
[BlackClock "0:00:03"]

1. Nf3 {[%clk 0:02:57]}  c5 {[%clk 0:02:58]} 2. g3 {[%clk 0:02:57]}  Nc6 {[%clk 0:02:55]} 3. Bg2 {[%clk 0:02:57]}  e5 {[%clk 0:02:55]} 4. O-O {[%clk 0:02:57]}  d5 {[%clk 0:02:53]} 5. d3 {[%clk 0:02:58]}  Be7 {[%clk 0:02:52]} 6. Nbd2 {[%clk 0:02:58]}  Nf6 {[%clk 0:02:52]} 7. e4 {[%clk 0:02:58]}  O-O {[%clk 0:02:48]} 8. c3 {[%clk 0:02:57]}  Qc7 {[%clk 0:02:44]} 9. Re1 {[%clk 0:02:55]}  Rd8 {[%clk 0:02:39]} 10. exd5 {[%clk 0:02:55]}  Nxd5 {[%clk 0:02:38]} 11. Nc4 {[%clk 0:02:55]}  f6 {[%clk 0:02:35]} 12. a4 {[%clk 0:02:54]}  Bg4 {[%clk 0:02:34]} 13. Qb3 {[%clk 0:02:53]}  Kh8 {[%clk 0:02:14]} 14. Nfd2 {[%clk 0:02:45]}  Nb6 {[%clk 0:01:45]} 15. Ne3 {[%clk 0:02:33]}  Bh5 {[%clk 0:01:30]} 16. a5 {[%clk 0:02:33]}  Nc8 {[%clk 0:01:25]} 17. Nd5 {[%clk 0:02:30]}  Qd7 {[%clk 0:01:26]} 18. a6 {[%clk 0:02:27]}  b6 {[%clk 0:01:22]} 19. Qa4 {[%clk 0:02:14]}  Be8 {[%clk 0:01:18]} 20. Nc4 {[%clk 0:02:05]}  Rb8 {[%clk 0:01:12]} 21. Nce3 {[%clk 0:01:56]}  b5 {[%clk 0:01:00]} 22. Qh4 {[%clk 0:01:43]}  Bf7 {[%clk 0:00:23]} 23. Be4 {[%clk 0:01:40]}  Bg8 {[%clk 0:00:24]} 24. Nxe7 {[%clk 0:01:31]}  N8xe7 {[%clk 0:00:23]} 25. Rd1 {[%clk 0:01:03]}  f5 {[%clk 0:00:19]} 26. Bg2 {[%clk 0:01:01]}  Ng6 {[%clk 0:00:19]} 27. Qh5 {[%clk 0:00:58]}  Be6 {[%clk 0:00:16]} 28. Nxf5 {[%clk 0:00:55]}  Bxf5 {[%clk 0:00:12]} 29. Bxc6 {[%clk 0:00:55]}  Bg4 {[%clk 0:00:08]} 30. Bxd7 {[%clk 0:00:54]}  Bxh5 {[%clk 0:00:07]} 31. g4 {[%clk 0:00:53]}  Rxd7 {[%clk 0:00:07]} 32. gxh5 {[%clk 0:00:53]}  Nh4 {[%clk 0:00:08]} 33. Be3 {[%clk 0:00:51]}  Rc8 {[%clk 0:00:04]} 34. Ra5 {[%clk 0:00:51]}  c4 {[%clk 0:00:03]} 35. Rxb5 {[%clk 0:00:51]}  Rxd3 {[%clk 0:00:03]} 36. Rxd3 {[%clk 0:00:50]}  cxd3 {[%clk 0:00:03]} 37. Kf1 {[%clk 0:00:49]}  Nf3 {[%clk 0:00:03]} 38. Rd5 {[%clk 0:00:44]}  e4 {[%clk 0:00:03]} 39. Bxa7 {[%clk 0:00:44]}  Ra8 {[%clk 0:00:03]} 40. Bb6 {[%clk 0:00:42]}  h6 {[%clk 0:00:03]} 41. Rd8+ {[%clk 0:00:40]} 1-0


[Site "https://www.chess.com"]

[Event "Titled Tuesday Blitz March 22 Late 2022"]
[White "Romero Ruscalleda, Josep"]
[Black "Sanchez Alvares, Kelvin Antonio"]
[WhiteFideId "2231859"]
[BlackFideId "3906680"]
[WhiteElo "2272"]
[BlackElo "2193"]
[Result "0-1"]
[Round "08"]
[TimeControl "180+1"]
[Date "2022.03.22"]
[WhiteClock "0:02:13"]
[BlackClock "0:02:14"]

1. e4 {[%clk 0:03:00]}  e5 {[%clk 0:02:59]} 2. Nf3 {[%clk 0:03:00]}  Nc6 {[%clk 0:03:00]} 3. Bc4 {[%clk 0:03:00]}  Bc5 {[%clk 0:02:59]} 4. c3 {[%clk 0:03:00]}  Nf6 {[%clk 0:02:58]} 5. b4 {[%clk 0:02:58]}  Bb6 {[%clk 0:02:54]} 6. d3 {[%clk 0:02:58]}  d6 {[%clk 0:02:54]} 7. a4 {[%clk 0:02:57]}  a5 {[%clk 0:02:54]} 8. b5 {[%clk 0:02:56]}  Ne7 {[%clk 0:02:53]} 9. Qb3 {[%clk 0:02:56]}  O-O {[%clk 0:02:52]} 10. Ng5 {[%clk 0:02:55]}  d5 {[%clk 0:02:51]} 11. exd5 {[%clk 0:02:55]}  Nexd5 {[%clk 0:02:51]} 12. O-O {[%clk 0:02:54]}  h6 {[%clk 0:02:49]} 13. Ne4 {[%clk 0:02:52]}  Nxe4 {[%clk 0:02:46]} 14. dxe4 {[%clk 0:02:52]}  Nf6 {[%clk 0:02:45]} 15. Nd2 {[%clk 0:02:48]}  Qe7 {[%clk 0:02:44]} 16. h3 {[%clk 0:02:42]}  Bc5 {[%clk 0:02:34]} 17. Nf3 {[%clk 0:02:41]}  Nxe4 {[%clk 0:02:28]} 18. Qc2 {[%clk 0:02:16]}  Nd6 {[%clk 0:02:19]} 19. Re1 {[%clk 0:02:13]}  Nxc4 {[%clk 0:02:14]} 0-1


[Site "https://www.chess.com"]

[Event "Titled Tuesday Blitz March 22 Late 2022"]
[White "Rosenberg, Evan S"]
[Black "Ozates, Tuna"]
[WhiteFideId "2019299"]
[BlackFideId "6354521"]
[WhiteElo "2347"]
[BlackElo "1887"]
[Result "0-1"]
[Round "08"]
[TimeControl "180+1"]
[Date "2022.03.22"]
[WhiteClock "0:00:04"]
[BlackClock "0:00:11"]

1. d4 {[%clk 0:02:59]}  f5 {[%clk 0:02:56]} 2. g3 {[%clk 0:02:57]}  Nf6 {[%clk 0:02:56]} 3. Bg2 {[%clk 0:02:58]}  e6 {[%clk 0:02:57]} 4. Nh3 {[%clk 0:02:49]}  Be7 {[%clk 0:02:55]} 5. c4 {[%clk 0:02:43]}  d6 {[%clk 0:02:56]} 6. Nc3 {[%clk 0:02:42]}  O-O {[%clk 0:02:53]} 7. d5 {[%clk 0:02:41]}  e5 {[%clk 0:02:53]} 8. Ng5 {[%clk 0:02:38]}  c6 {[%clk 0:02:48]} 9. h4 {[%clk 0:02:35]}  h6 {[%clk 0:02:45]} 10. Ne6 {[%clk 0:02:35]}  Bxe6 {[%clk 0:02:45]} 11. dxe6 {[%clk 0:02:36]}  Qc8 {[%clk 0:02:46]} 12. Qb3 {[%clk 0:02:20]}  Na6 {[%clk 0:02:37]} 13. Na4 {[%clk 0:01:58]}  Rb8 {[%clk 0:02:23]} 14. Be3 {[%clk 0:01:48]}  b6 {[%clk 0:02:04]} 15. Rd1 {[%clk 0:01:30]}  e4 {[%clk 0:01:59]} 16. Bf4 {[%clk 0:01:22]}  Qxe6 {[%clk 0:01:55]} 17. c5 {[%clk 0:01:22]}  Qxb3 {[%clk 0:01:53]} 18. axb3 {[%clk 0:01:22]}  Nxc5 {[%clk 0:01:48]} 19. Nxc5 {[%clk 0:01:18]}  bxc5 {[%clk 0:01:47]} 20. Bxd6 {[%clk 0:01:18]}  Bxd6 {[%clk 0:01:48]} 21. Rxd6 {[%clk 0:01:18]}  Rxb3 {[%clk 0:01:48]} 22. O-O {[%clk 0:01:10]}  Rxb2 {[%clk 0:01:47]} 23. e3 {[%clk 0:01:10]}  Ng4 {[%clk 0:01:44]} 24. Rxc6 {[%clk 0:01:06]}  Rc2 {[%clk 0:01:44]} 25. h5 {[%clk 0:00:39]}  Rd8 {[%clk 0:01:33]} 26. Rg6 {[%clk 0:00:33]}  Rdd2 {[%clk 0:01:27]} 27. Bxe4 {[%clk 0:00:30]}  fxe4 {[%clk 0:01:27]} 28. Rxg4 {[%clk 0:00:30]}  c4 {[%clk 0:01:21]} 29. Rf4 {[%clk 0:00:29]}  c3 {[%clk 0:01:18]} 30. Rxe4 {[%clk 0:00:30]}  Rb2 {[%clk 0:01:07]} 31. Rc4 {[%clk 0:00:28]}  c2 {[%clk 0:01:06]} 32. Kg2 {[%clk 0:00:18]}  a5 {[%clk 0:00:57]} 33. Rc1 {[%clk 0:00:15]}  a4 {[%clk 0:00:48]} 34. Ra1 {[%clk 0:00:05]}  a3 {[%clk 0:00:35]} 35. Rxa3 {[%clk 0:00:03]}  Rxf2+ {[%clk 0:00:35]} 36. Kh3 {[%clk 0:00:01]}  Rb1 {[%clk 0:00:28]} 37. Rac3 {[%clk 0:00:01]}  Rc1 {[%clk 0:00:24]} 38. Kg4 {[%clk 0:00:01]}  Rd2 {[%clk 0:00:21]} 39. Rc8+ {[%clk 0:00:02]}  Kh7 {[%clk 0:00:21]} 40. e4 {[%clk 0:00:02]}  Re1 {[%clk 0:00:14]} 41. Kf4 {[%clk 0:00:03]}  Rf2+ {[%clk 0:00:13]} 42. Ke5 {[%clk 0:00:03]}  Rfe2 {[%clk 0:00:13]} 43. Rxc2 {[%clk 0:00:03]}  Rxe4+ {[%clk 0:00:13]} 44. Kf5 {[%clk 0:00:03]}  Re5+ {[%clk 0:00:11]} 45. Kf4 {[%clk 0:00:04]}  R1e4+ {[%clk 0:00:11]} 46. Kf3 {[%clk 0:00:05]}  Re3+ {[%clk 0:00:10]} 47. Kf2 {[%clk 0:00:05]}  Rd3 {[%clk 0:00:10]} 48. R2c5 {[%clk 0:00:04]}  Ree3 {[%clk 0:00:09]} 49. R8c7 {[%clk 0:00:04]}  Rxg3 {[%clk 0:00:08]} 50. Re5 {[%clk 0:00:04]}  Rdf3+ {[%clk 0:00:09]} 51. Ke2 {[%clk 0:00:04]}  Rf6 {[%clk 0:00:09]} 52. Ree7 {[%clk 0:00:04]}  Rf5 {[%clk 0:00:09]} 53. Re6 {[%clk 0:00:03]}  Rxh5 {[%clk 0:00:09]} 54. Re8 {[%clk 0:00:04]}  Rh2+ {[%clk 0:00:07]} 55. Kf1 {[%clk 0:00:04]}  Ra3 {[%clk 0:00:08]} 56. Ree7 {[%clk 0:00:04]}  Ra1+ {[%clk 0:00:07]} 57. Re1 {[%clk 0:00:05]}  Rh1+ {[%clk 0:00:08]} 58. Kg2 {[%clk 0:00:05]}  Rhxe1 {[%clk 0:00:09]} 59. Rf7 {[%clk 0:00:04]}  Rad1 {[%clk 0:00:09]} 60. Rf2 {[%clk 0:00:04]}  Re6 {[%clk 0:00:08]} 61. Rf4 {[%clk 0:00:04]}  Rdd6 {[%clk 0:00:09]} 62. Rh4 {[%clk 0:00:04]}  Rf6 {[%clk 0:00:10]} 63. Kg3 {[%clk 0:00:05]}  Rg6+ {[%clk 0:00:10]} 64. Kh2 {[%clk 0:00:04]}  Rd5 {[%clk 0:00:10]} 65. Re4 {[%clk 0:00:04]}  Rh5+ {[%clk 0:00:10]} 66. Rh4 {[%clk 0:00:04]}  Rxh4# {[%clk 0:00:11]} 0-1


[Site "https://www.chess.com"]

[Event "Titled Tuesday Blitz March 22 Late 2022"]
[White "Sanal, Vahap"]
[Black "Moussard, Jules"]
[WhiteFideId "6300545"]
[BlackFideId "642908"]
[WhiteElo "2603"]
[BlackElo "2557"]
[Result "1-0"]
[Round "08"]
[TimeControl "180+1"]
[Date "2022.03.22"]
[WhiteClock "0:01:03"]
[BlackClock "0:00:59"]

1. e4 {[%clk 0:03:00]}  e5 {[%clk 0:03:00]} 2. Nf3 {[%clk 0:03:01]}  Nf6 {[%clk 0:03:01]} 3. Nxe5 {[%clk 0:03:00]}  d6 {[%clk 0:03:01]} 4. Nf3 {[%clk 0:03:01]}  Nxe4 {[%clk 0:03:02]} 5. d4 {[%clk 0:03:01]}  d5 {[%clk 0:03:02]} 6. Bd3 {[%clk 0:03:02]}  Bb4+ {[%clk 0:03:03]} 7. c3 {[%clk 0:03:01]}  Bd6 {[%clk 0:03:04]} 8. O-O {[%clk 0:03:02]}  O-O {[%clk 0:03:04]} 9. c4 {[%clk 0:03:02]}  c6 {[%clk 0:03:05]} 10. Nc3 {[%clk 0:03:03]}  Nxc3 {[%clk 0:03:06]} 11. bxc3 {[%clk 0:03:03]}  dxc4 {[%clk 0:03:06]} 12. Bxc4 {[%clk 0:03:04]}  Bf5 {[%clk 0:03:07]} 13. Bg5 {[%clk 0:03:04]}  Qa5 {[%clk 0:03:07]} 14. d5 {[%clk 0:03:05]}  Qc5 {[%clk 0:03:07]} 15. Bb3 {[%clk 0:03:03]}  cxd5 {[%clk 0:02:59]} 16. Bxd5 {[%clk 0:02:57]}  Nc6 {[%clk 0:02:57]} 17. c4 {[%clk 0:02:43]}  Na5 {[%clk 0:02:44]} 18. Be3 {[%clk 0:02:39]}  Qc7 {[%clk 0:02:42]} 19. Nd4 {[%clk 0:02:35]}  Bd7 {[%clk 0:02:38]} 20. Qh5 {[%clk 0:02:30]}  Rae8 {[%clk 0:02:25]} 21. Rac1 {[%clk 0:02:25]}  Re5 {[%clk 0:02:25]} 22. Qf3 {[%clk 0:02:22]}  b6 {[%clk 0:02:16]} 23. Rfd1 {[%clk 0:02:11]}  Ree8 {[%clk 0:02:07]} 24. Nb5 {[%clk 0:02:10]}  Bxb5 {[%clk 0:02:04]} 25. cxb5 {[%clk 0:02:11]}  Qe7 {[%clk 0:01:53]} 26. g3 {[%clk 0:02:03]}  h6 {[%clk 0:01:46]} 27. Kg2 {[%clk 0:02:02]}  Be5 {[%clk 0:01:41]} 28. h4 {[%clk 0:02:00]}  Rd8 {[%clk 0:01:36]} 29. Qe4 {[%clk 0:01:47]}  Qf6 {[%clk 0:01:32]} 30. g4 {[%clk 0:01:42]}  Rfe8 {[%clk 0:01:31]} 31. g5 {[%clk 0:01:42]}  hxg5 {[%clk 0:01:31]} 32. hxg5 {[%clk 0:01:43]}  Qe7 {[%clk 0:01:30]} 33. Rh1 {[%clk 0:01:31]}  Bh2 {[%clk 0:01:30]} 34. Qf3 {[%clk 0:01:16]}  Qd7 {[%clk 0:01:18]} 35. Rcd1 {[%clk 0:01:10]}  Be5 {[%clk 0:01:13]} 36. g6 {[%clk 0:01:07]}  Re6 {[%clk 0:00:59]} 37. Bxe6 {[%clk 0:01:05]}  fxe6 {[%clk 0:00:59]} 38. Qf7+ {[%clk 0:01:03]} 1-0


[Site "https://www.chess.com"]

[Event "Titled Tuesday Blitz March 22 Late 2022"]
[White "Sarana, Alexey"]
[Black "Fedoseev, Vladimir"]
[WhiteFideId "24133795"]
[BlackFideId "24130737"]
[WhiteElo "2666"]
[BlackElo "2726"]
[Result "0-1"]
[Round "08"]
[TimeControl "180+1"]
[Date "2022.03.22"]
[WhiteClock "0:00:24"]
[BlackClock "0:01:18"]

1. d4 {[%clk 0:03:00]}  Nf6 {[%clk 0:02:59]} 2. c4 {[%clk 0:03:01]}  g6 {[%clk 0:03:00]} 3. Nc3 {[%clk 0:03:02]}  d5 {[%clk 0:03:00]} 4. cxd5 {[%clk 0:03:02]}  Nxd5 {[%clk 0:03:00]} 5. e4 {[%clk 0:03:03]}  Nxc3 {[%clk 0:03:00]} 6. bxc3 {[%clk 0:03:04]}  Bg7 {[%clk 0:03:00]} 7. Bc4 {[%clk 0:03:05]}  c5 {[%clk 0:02:59]} 8. Ne2 {[%clk 0:03:05]}  O-O {[%clk 0:02:59]} 9. Be3 {[%clk 0:03:05]}  Nc6 {[%clk 0:02:57]} 10. Rc1 {[%clk 0:03:06]}  Na5 {[%clk 0:02:44]} 11. Bd3 {[%clk 0:03:06]}  e5 {[%clk 0:02:38]} 12. dxe5 {[%clk 0:03:07]}  Qc7 {[%clk 0:02:26]} 13. f4 {[%clk 0:02:46]}  Rd8 {[%clk 0:02:25]} 14. c4 {[%clk 0:02:46]}  Be6 {[%clk 0:02:25]} 15. Qc2 {[%clk 0:02:41]}  Qd7 {[%clk 0:01:59]} 16. Rd1 {[%clk 0:02:34]}  Nxc4 {[%clk 0:01:48]} 17. Bxc5 {[%clk 0:01:12]}  Rac8 {[%clk 0:01:47]} 18. Bxc4 {[%clk 0:01:08]}  Qxd1+ {[%clk 0:01:43]} 19. Qxd1 {[%clk 0:01:09]}  Rxd1+ {[%clk 0:01:43]} 20. Kxd1 {[%clk 0:01:10]}  Bxc4 {[%clk 0:01:43]} 21. Bxa7 {[%clk 0:01:08]}  Ra8 {[%clk 0:01:39]} 22. Bc5 {[%clk 0:00:50]}  Rxa2 {[%clk 0:01:35]} 23. Re1 {[%clk 0:00:51]}  Bb3+ {[%clk 0:01:33]} 24. Kc1 {[%clk 0:00:51]}  Rc2+ {[%clk 0:01:33]} 25. Kb1 {[%clk 0:00:48]}  Rxc5 {[%clk 0:01:34]} 26. Nd4 {[%clk 0:00:49]}  Bc4 {[%clk 0:01:33]} 27. Kb2 {[%clk 0:00:48]}  Ra5 {[%clk 0:01:27]} 28. Kc3 {[%clk 0:00:45]}  b5 {[%clk 0:01:27]} 29. Kb4 {[%clk 0:00:34]}  Ra2 {[%clk 0:01:20]} 30. Nxb5 {[%clk 0:00:25]}  Bxb5 {[%clk 0:01:20]} 31. Kxb5 {[%clk 0:00:26]}  Rxg2 {[%clk 0:01:19]} 32. h3 {[%clk 0:00:26]}  Rf2 {[%clk 0:01:19]} 33. f5 {[%clk 0:00:23]}  gxf5 {[%clk 0:01:18]} 34. exf5 {[%clk 0:00:24]}  Rxf5 {[%clk 0:01:18]} 0-1


[Site "https://www.chess.com"]

[Event "Titled Tuesday Blitz March 22 Late 2022"]
[White "Simonovic, Miroslav"]
[Black "Ortez, Andrea"]
[WhiteFideId "919152"]
[BlackFideId "6702392"]
[WhiteElo "2043"]
[BlackElo "1696"]
[Result "0-1"]
[Round "08"]
[TimeControl "180+1"]
[Date "2022.03.22"]
[WhiteClock "0:00:10"]
[BlackClock "0:00:12"]

1. d4 {[%clk 0:03:00]}  d5 {[%clk 0:02:54]} 2. Bg5 {[%clk 0:03:01]}  h6 {[%clk 0:02:53]} 3. Bh4 {[%clk 0:03:01]}  Nf6 {[%clk 0:02:54]} 4. Bxf6 {[%clk 0:03:01]}  exf6 {[%clk 0:02:54]} 5. e3 {[%clk 0:03:02]}  c6 {[%clk 0:02:54]} 6. c4 {[%clk 0:03:02]}  Bd6 {[%clk 0:02:54]} 7. cxd5 {[%clk 0:03:02]}  cxd5 {[%clk 0:02:54]} 8. a3 {[%clk 0:03:03]}  Nc6 {[%clk 0:02:52]} 9. Nc3 {[%clk 0:03:03]}  Be6 {[%clk 0:02:51]} 10. g3 {[%clk 0:03:03]}  O-O {[%clk 0:02:48]} 11. Bg2 {[%clk 0:03:04]}  Bc7 {[%clk 0:02:43]} 12. Nge2 {[%clk 0:03:04]}  Qd7 {[%clk 0:02:40]} 13. O-O {[%clk 0:02:59]}  Ba5 {[%clk 0:02:40]} 14. b4 {[%clk 0:02:59]}  Bc7 {[%clk 0:02:38]} 15. Rc1 {[%clk 0:02:57]}  a6 {[%clk 0:02:38]} 16. Na4 {[%clk 0:02:55]}  b5 {[%clk 0:02:18]} 17. Nc5 {[%clk 0:02:55]}  Qe7 {[%clk 0:02:17]} 18. Qc2 {[%clk 0:02:46]}  Nd8 {[%clk 0:02:14]} 19. Nxe6 {[%clk 0:02:36]}  Nxe6 {[%clk 0:02:15]} 20. Bxd5 {[%clk 0:02:35]}  Rac8 {[%clk 0:02:12]} 21. Bb7 {[%clk 0:02:32]}  Rb8 {[%clk 0:02:06]} 22. Qc6 {[%clk 0:02:25]}  Bd6 {[%clk 0:01:59]} 23. Bxa6 {[%clk 0:02:08]}  Nd8 {[%clk 0:01:58]} 24. Qd5 {[%clk 0:02:08]}  Ne6 {[%clk 0:01:38]} 25. Nc3 {[%clk 0:01:53]}  Rfd8 {[%clk 0:01:37]} 26. Qc6 {[%clk 0:01:47]}  Ng5 {[%clk 0:01:20]} 27. Bxb5 {[%clk 0:01:28]}  f5 {[%clk 0:00:58]} 28. Be2 {[%clk 0:01:24]}  Nh3+ {[%clk 0:00:55]} 29. Kg2 {[%clk 0:01:23]}  Ng5 {[%clk 0:00:55]} 30. h4 {[%clk 0:01:19]}  Ne4 {[%clk 0:00:55]} 31. Nxe4 {[%clk 0:01:18]}  fxe4 {[%clk 0:00:56]} 32. Bg4 {[%clk 0:01:04]}  g6 {[%clk 0:00:51]} 33. Qc4 {[%clk 0:00:57]}  Kg7 {[%clk 0:00:47]} 34. f4 {[%clk 0:00:46]}  f5 {[%clk 0:00:41]} 35. Be2 {[%clk 0:00:45]}  Ra8 {[%clk 0:00:25]} 36. Qb3 {[%clk 0:00:43]}  Qa7 {[%clk 0:00:21]} 37. Rc3 {[%clk 0:00:38]}  Rdc8 {[%clk 0:00:17]} 38. Rfc1 {[%clk 0:00:37]}  Rxc3 {[%clk 0:00:17]} 39. Rxc3 {[%clk 0:00:37]}  Qe7 {[%clk 0:00:16]} 40. Qd5 {[%clk 0:00:34]}  Rd8 {[%clk 0:00:13]} 41. Qc6 {[%clk 0:00:33]}  Rd7 {[%clk 0:00:13]} 42. Bb5 {[%clk 0:00:31]}  Rc7 {[%clk 0:00:13]} 43. d5 {[%clk 0:00:13]}  Rxc6 {[%clk 0:00:13]} 44. dxc6 {[%clk 0:00:14]}  Bc7 {[%clk 0:00:12]} 45. Ba4 {[%clk 0:00:11]}  Qd6 {[%clk 0:00:12]} 46. Kf2 {[%clk 0:00:08]}  Qd2+ {[%clk 0:00:12]} 47. Kg1 {[%clk 0:00:07]}  Qxc3 {[%clk 0:00:12]} 48. b5 {[%clk 0:00:07]}  Qxa3 {[%clk 0:00:12]} 49. Kh2 {[%clk 0:00:07]}  Qxa4 {[%clk 0:00:12]} 50. h5 {[%clk 0:00:08]}  gxh5 {[%clk 0:00:12]} 51. Kh3 {[%clk 0:00:08]}  Qxb5 {[%clk 0:00:12]} 52. g4 {[%clk 0:00:09]}  hxg4+ {[%clk 0:00:12]} 53. Kh4 {[%clk 0:00:09]}  Qxc6 {[%clk 0:00:12]} 54. Kg3 {[%clk 0:00:10]}  Qf6 {[%clk 0:00:11]} 55. Kg2 {[%clk 0:00:10]}  Qh4 {[%clk 0:00:12]} 56. Kf1 {[%clk 0:00:09]}  Qh2 {[%clk 0:00:12]} 57. Ke1 {[%clk 0:00:10]}  g3 {[%clk 0:00:12]} 0-1


[Site "https://www.chess.com"]